bitfinex-derivatives/quotes_SOLF0:USTF0_20240815
["timestamp","ask_amount","ask_price","bid_price","bid_amount"]
[1723724812083,13.42899445,143.46,143.38,4.44]
[1723724812281,13.42899445,143.46,143.37,2.6483]
[1723724812282,13.38,143.39,143.33,1.2885]
[1723724812484,13.38,143.39,143.35,3.4877]
[1723724812782,3.4872,143.38,143.35,3.4877]
[1723724813587,3.53817359,143.38,143.35,3.53480895]
[1723724813879,3.4873,143.37,143.35,0.04710895]
[1723724814081,16.8673,143.37,143.35,0.04710895]
[1723724814284,13.38,143.37,143.35,0.04710895]
[1723724814481,3.4875,143.36,143.35,0.04710895]
[1723724816479,3.4874,143.37,143.35,0.04710895]
[1723724816985,0.05097359,143.38,143.35,0.04710895]
[1723724817284,3.4873,143.37,143.35,0.04710895]
[1723724818584,3.4873,143.37,143.35,3.53480895]
[1723724819674,3.4873,143.37,143.35,0.04710895]
[1723724820788,3.4875,143.36,143.35,0.04710895]
[1723724824384,0.05097359,143.38,143.35,0.04710895]
[1723724825186,0.05097359,143.38,143.36,3.4875]
[1723724825381,0.05097359,143.38,143.35,0.04710895]
[1723724825692,3.53797359,143.38,143.36,3.4874]
[1723724826283,0.05097359,143.38,143.36,3.4874]
[1723724826692,3.53807359,143.38,143.35,3.53480895]
[1723724827084,3.53807359,143.38,143.35,0.04710895]
[1723724827390,0.05097359,143.38,143.35,3.53470895]
[1723724828392,3.4874,143.37,143.35,0.04710895]
[1723724828890,0.05097359,143.38,143.35,0.04710895]
[1723724828891,3.4875,143.36,143.35,0.04710895]
[1723724830080,3.6875,143.36,143.35,0.04710895]
[1723724833596,0.2,143.36,143.35,0.04710895]
[1723724834391,3.6875,143.36,143.35,0.04710895]
[1723724837499,8.1275,143.36,143.35,0.04710895]
[1723724838199,3.4885,143.33,143.3,3.4888]
[1723724839098,3.4886,143.32,143.3,3.4888]
[1723724839292,0.04859515,143.33,143.3,0.04508014]
[1723724840002,3.4885,143.32,143.3,0.04508014]
[1723724841697,3.4885,143.32,143.3,3.53398014]
[1723724841891,3.53689515,143.33,143.3,3.53398014]
[1723724842087,0.04859515,143.33,143.3,3.53398014]
[1723724843493,3.53699515,143.33,143.31,3.4887]
[1723724844605,3.53699515,143.33,143.3,3.53388014]
[1723724845000,3.4886,143.32,143.3,3.53388014]
[1723724845490,3.4887,143.31,143.3,0.04508014]
[1723724847503,3.4885,143.32,143.3,0.04508014]
[1723724847895,0.04859515,143.33,143.3,0.04508014]
[1723724848096,0.04859515,143.33,143.32,3.4885]
[1723724848294,0.04859515,143.33,143.3,13.43508014]
[1723724848902,0.04859515,143.33,143.3,3.53388014]
[1723724849195,0.04859515,143.33,143.3,0.04508014]
[1723724849402,3.4886,143.32,143.3,3.53398014]
[1723724850104,3.53699515,143.33,143.3,3.53398014]
[1723724850803,3.53699515,143.33,143.3,0.04508014]
[1723724850804,3.4885,143.32,143.3,0.04508014]
[1723724851097,0.04859515,143.33,143.3,0.04508014]
[1723724851303,3.53699515,143.33,143.3,3.53388014]
[1723724852103,3.53699515,143.33,143.3,0.04508014]
[1723724852299,0.04859515,143.33,143.31,3.4887]
[1723724852700,3.53699515,143.33,143.3,3.53388014]
[1723724853600,3.53699515,143.33,143.31,3.4887]
[1723724857208,0.04859515,143.33,143.32,3.4885]
[1723724857398,0.04859515,143.33,143.3,13.43508014]
[1723724858405,3.53689515,143.33,143.31,3.4886]
[1723724859101,0.04859515,143.33,143.3,0.04508014]
[1723724859603,3.4887,143.31,143.3,0.04508014]
[1723724860204,3.4886,143.32,143.3,0.04508014]
[1723724862005,3.4887,143.31,143.3,0.04508014]
[1723724869014,0.04859515,143.33,143.3,0.04508014]
[1723724869420,3.4886,143.32,143.3,0.04508014]
[1723724869719,0.04859515,143.33,143.3,0.04508014]
[1723724870220,3.4887,143.32,143.3,0.04508014]
[1723724870418,3.4887,143.32,143.3,3.53398014]
[1723724871017,3.4887,143.32,143.3,0.04508014]
[1723724872718,0.2,143.31,143.3,0.04508014]
[1723724874222,0.2,143.31,143.3,3.53408014]
[1723724876921,3.6887,143.31,143.3,0.04508014]
[1723724877923,0.2,143.31,143.3,0.04508014]
[1723724878327,0.2,143.31,143.3,3.53408014]
[1723724879125,0.2,143.31,143.3,0.04508014]
[1723724880628,0.2,143.31,143.3,3.53408014]
[1723724882029,4.4,143.35,143.3,3.53408014]
[1723724882030,6.9674,143.52,143.3,71.39508014]
[1723724882226,79.69283507,143.54,143.46,13.39]
[1723724882422,4.72535094,143.55,143.46,13.39]
[1723724882620,3.41905094,143.55,143.49,13.39]
[1723724882820,10.02258124,143.59,143.52,13.39]
[1723724883020,13.39,143.61,143.54,13.39]
[1723724883319,13.39,143.56,143.54,0.04433778]
[1723724883522,16.8729,143.55,143.54,0.04433778]
[1723724883937,13.39,143.55,143.49,3.4841]
[1723724884232,13.39,143.55,143.53,0.05079668]
[1723724884639,3.4832,143.54,143.53,0.05079668]
[1723724885227,16.8729,143.55,143.53,0.05079668]
[1723724885623,0.05048166,143.56,143.53,0.05079668]
[1723724886026,0.05048166,143.56,143.53,3.53399668]
[1723724886625,0.05048166,143.56,143.53,0.05079668]
[1723724887531,0.05048166,143.56,143.53,3.53399668]
[1723724888735,0.05048166,143.56,143.53,0.05079668]
[1723724889132,0.05048166,143.56,143.54,33.45]
[1723724889331,0.05048166,143.56,143.55,3.4829]
[1723724890138,0.05048166,143.56,143.54,3.4831]
[1723724890332,0.05048166,143.56,143.53,0.05079668]
[1723724890836,0.05048166,143.56,143.54,3.4829]
[1723724891435,0.05048166,143.56,143.53,0.05079668]
[1723724891635,0.05048166,143.56,143.55,3.4829]
[1723724896336,0.05048166,143.56,143.54,3.483]
[1723724896538,0.05048166,143.56,143.53,0.05079668]
[1723724896942,0.05048166,143.56,143.55,3.4829]
[1723724897840,0.05048166,143.56,143.53,0.05079668]
[1723724898045,33.45,143.54,143.53,0.05079668]
[1723724899563,36.9331,143.54,143.53,0.05079668]
[1723724900137,3.4831,143.54,143.53,0.05079668]
[1723724901445,33.50048166,143.56,143.53,0.05079668]
[1723724901446,3.483,143.55,143.53,0.05079668]
[1723724902346,3.4831,143.54,143.53,0.05079668]
[1723724903347,36.9331,143.54,143.53,0.05079668]
[1723724905845,16.8731,143.54,143.53,0.05079668]
[1723724914755,13.39,143.54,143.48,1.2835]
[1723724914955,13.39,143.51,143.46,1.2487]
[1723724915448,3.4842,143.5,143.46,1.2487]
[1723724915849,0.05300542,143.49,143.47,3.53207572]
[1723724916353,3.53740542,143.49,143.47,3.53207572]
[1723724916550,0.05300542,143.49,143.47,0.04737572]
[1723724916854,3.53740542,143.49,143.47,0.04737572]
[1723724917049,0.05300542,143.49,143.47,0.04737572]
[1723724917249,0.05300542,143.49,143.48,3.4846]
[1723724917447,0.05300542,143.49,143.47,0.04737572]
[1723724917854,13.39,143.48,143.47,0.04737572]
[1723724918056,16.8746,143.48,143.47,0.04737572]
[1723724927857,13.39,143.48,143.47,0.04737572]
[1723724928466,16.8746,143.48,143.47,0.04737572]
[1723724928964,0.05300542,143.49,143.47,0.04737572]
[1723724929357,3.53750542,143.49,143.47,3.53207572]
[1723724929963,3.53750542,143.49,143.47,0.04737572]
[1723724931158,3.4846,143.48,143.47,0.04737572]
[1723724931764,16.8746,143.48,143.47,0.04737572]
[1723724935370,3.4846,143.48,143.47,0.04737572]
[1723724935562,16.8746,143.48,143.47,0.04737572]
[1723724936070,3.4846,143.48,143.47,0.04737572]
[1723724936266,16.8746,143.48,143.47,0.04737572]
[1723724936971,13.39,143.48,143.39,1.2995]
[1723724937171,13.39,143.44,143.4,1.2713]
[1723724937363,6.9692,143.48,143.37,1.3486]
[1723724937574,13.39,143.41,143.37,1.3486]
[1723724937870,3.4867,143.4,143.37,1.3486]
[1723724938069,0.04690426,143.4,143.38,0.04594577]
[1723724938261,13.39,143.39,143.38,0.04594577]
[1723724938571,16.8768,143.39,143.38,0.04594577]
[1723724939167,3.4875,143.36,143.35,1.2713]
[1723724939359,13.39,143.36,143.33,1.3486]
[1723724939559,3.4876,143.36,143.33,1.3486]
[1723724939763,13.39,143.37,143.33,1.3486]
[1723724940074,33.51,143.37,143.33,1.3486]
[1723724940368,0.05254904,143.36,143.34,0.04606407]
[1723724940769,3.54014904,143.36,143.34,0.04606407]
[1723724941869,0.05254904,143.36,143.34,0.04606407]
[1723724942069,0.05254904,143.36,143.34,3.53386407]
[1723724942560,0.05254904,143.36,143.35,3.4877]
[1723724943264,3.44765091,143.43,143.34,0.04606407]
[1723724943567,33.51,143.43,143.33,34.8586]
[1723724943764,3.5524874,143.42,143.33,34.8586]
[1723724943968,3.5524874,143.42,143.36,3.4873]
[1723724944163,3.4867,143.4,143.36,3.4873]
[1723724944366,3.4867,143.4,143.33,34.8586]
[1723724944572,3.4868,143.39,143.38,0.05348508]
[1723724944867,3.4868,143.39,143.33,34.8586]
[1723724945072,3.4868,143.39,143.37,0.04571632]
[1723724945664,3.53119438,143.4,143.37,0.04571632]
[1723724946169,3.53119438,143.4,143.37,3.53301632]
[1723724946371,3.487,143.38,143.37,0.04571632]
[1723724946971,3.4869,143.39,143.37,0.04571632]
[1723724947167,0.04459438,143.4,143.37,0.04571632]
[1723724947369,36.997,143.38,143.37,0.04571632]
[1723724950575,3.4878,143.35,143.32,4.8027]
[1723724950775,3.4878,143.35,143.32,1.3143]
[1723724951172,3.4878,143.35,143.32,4.8027]
[1723724951478,3.4875,143.36,143.32,1.3143]
[1723724951868,0.04817694,143.35,143.34,3.4879]
[1723724952077,33.51,143.4,143.34,3.4879]
[1723724952380,0.05152665,143.38,143.34,3.4879]
[1723724952682,3.4874,143.37,143.34,3.4879]
[1723724953184,3.4875,143.37,143.34,3.4879]
[1723724954380,0.05152665,143.38,143.33,0.05279707]
[1723724955286,3.488,143.34,143.33,0.05279707]
[1723724955985,3.5398304,143.35,143.33,0.05279707]
[1723724956181,0.0519304,143.35,143.33,0.05279707]
[1723724956579,3.5397304,143.35,143.33,3.54089707]
[1723724956980,0.0519304,143.35,143.33,3.54089707]
[1723724958585,0.0519304,143.35,143.34,3.488]
[1723724959685,0.2,143.36,143.35,3.4877]
[1723724960190,0.2,143.36,143.34,3.4878]
[1723724960591,0.2,143.36,143.33,0.05279707]
[1723724960889,0.25090263,143.36,143.33,0.05279707]
[1723724961083,0.25090263,143.36,143.34,3.488]
[1723724962488,0.25090263,143.36,143.35,3.4877]
[1723724963387,3.4768061,143.43,143.38,3.487]
[1723724963586,3.44426276,143.44,143.34,1.3615]
[1723724963988,1.4634,143.49,143.34,1.3615]
[1723724964290,3.486,143.43,143.34,1.3615]
[1723724964485,3.486,143.43,143.4,3.4864]
[1723724964785,2.7889,143.49,143.37,0.04432191]
[1723724964994,2.7889,143.49,143.34,1.3615]
[1723724964995,3.4862,143.42,143.34,1.3615]
[1723724965188,3.4862,143.42,143.39,3.4866]
[1723724965689,3.53198722,143.42,143.39,3.4866]
[1723724965891,3.53198722,143.42,143.4,3.4865]
[1723724966793,0.04578722,143.42,143.4,3.4865]
[1723724967297,0.04578722,143.42,143.39,3.4866]
[1723724967488,3.53198722,143.42,143.39,3.4866]
[1723724968493,3.4863,143.41,143.39,3.4866]
[1723724968797,0.04578722,143.42,143.38,3.4869]
[1723724969192,3.4865,143.41,143.38,3.4869]
[1723724969703,0.04578722,143.42,143.38,3.4869]
[1723724970002,3.4863,143.41,143.38,3.4869]
[1723724970199,0.04578722,143.42,143.39,3.4866]
[1723724970399,3.53198722,143.42,143.39,3.4866]
[1723724970795,0.04578722,143.42,143.37,1.38042398]
[1723724971387,0.04578722,143.42,143.41,3.4863]
[1723724971591,0.04578722,143.42,143.37,1.329]
[1723724971789,0.04578722,143.42,143.4,0.05038883]
[1723724972497,3.53198722,143.42,143.4,0.05038883]
[1723724972698,0.04578722,143.42,143.4,0.05038883]
[1723724973102,3.4863,143.41,143.4,0.05038883]
[1723724982515,0.04578722,143.42,143.4,0.05038883]
[1723724983617,3.4863,143.41,143.4,0.05038883]
[1723724983917,0.04578722,143.42,143.29,8.80052918]
[1723724984124,1.2954,143.4,143.28,8.80052918]
[1723724984322,1.2954,143.4,143.25,2.5195]
[1723724984513,6.979,143.39,143.25,2.5195]
[1723724984714,1.2954,143.4,143.25,2.5195]
[1723724984915,0.39844406,143.39,143.25,2.5195]
[1723724985328,3.4893,143.29,143.26,3.4897]
[1723724985620,0.04403662,143.34,143.25,2.5195]
[1723724985818,0.39841642,143.37,143.31,0.04774745]
[1723724986013,0.04975171,143.31,143.29,3.4891]
[1723724986218,3.46634325,143.36,143.29,3.4891]
[1723724986420,6.9742,143.38,143.29,0.0454889]
[1723724986619,0.04547613,143.31,143.3,3.489]
[1723724986815,8.2744,143.4,143.3,3.489]
[1723724987042,0.05027355,143.32,143.3,3.489]
[1723724987222,1.2954,143.4,143.31,3.4887]
[1723724987527,0.04438888,143.32,143.31,3.4887]
[1723724987727,6.979,143.42,143.25,2.5195]
[1723724987728,6.979,143.42,143.25,10.06510199]
[1723724987919,9.5363,143.42,143.25,10.06510199]
[1723724988323,3.4877,143.36,143.32,3.4885]
[1723724988528,9.5363,143.42,143.32,3.4885]
[1723724988929,0.05224257,143.38,143.36,0.05034606]
[1723724989228,0.05224257,143.38,143.25,1.2608]
[1723724989429,3.4894,143.29,143.25,1.2608]
[1723724989618,3.41836015,143.34,143.25,4.77580087]
[1723724989917,0.4508,143.37,143.25,1.2608]
[1723724990125,0.4508,143.37,143.28,3.4893]
[1723724990319,7.4257,143.37,143.25,1.2608]
[1723724990523,0.05072223,143.32,143.25,1.2608]
[1723724990736,0.05072223,143.32,143.3,0.05240259]
[1723724991031,3.489,143.3,143.25,1.2608]
[1723724991229,3.489,143.3,143.27,3.4896]
[1723724991520,0.05205104,143.29,143.27,3.4896]
[1723724991724,0.05205104,143.29,143.28,3.4894]
[1723724994526,1.3302,143.4,143.26,1.28963493]
[1723724995031,1.3302,143.4,143.34,3.4879]
[1723724995224,3.4874,143.37,143.34,3.4879]
[1723724995832,0.04585477,143.37,143.35,3.4876]
[1723724996029,0.04585477,143.37,143.34,0.05146204]
[1723724996325,0.04585477,143.37,143.36,3.4875]
[1723724996630,0.04585477,143.37,143.34,0.05146204]
[1723724997031,0.04585477,143.37,143.33,1.18336204]
[1723724997827,0.04585477,143.37,143.26,8.80340544]
[1723724998028,0.04585477,143.37,143.33,3.4881]
[1723724998234,0.39797947,143.43,143.28,3.48472164]
[1723724998431,0.39797947,143.43,143.3,0.05111539]
[1723724998628,0.04857247,143.36,143.33,3.4881]
[1723724998824,0.04857247,143.36,143.35,0.0467343]
[1723724999025,0.39797947,143.43,143.35,0.0467343]
[1723724999224,3.4875,143.36,143.35,0.0467343]
[1723725000228,0.05009365,143.37,143.35,0.0467343]
[1723725000435,10.03593222,143.48,143.35,0.0467343]
[1723725000631,28.64630715,143.64,143.35,0.0467343]
[1723725000632,0.39774371,143.47,143.35,0.0467343]
[1723725000835,3.49787204,143.53,143.35,3.56729226]
[1723725001139,12.65138802,143.57,143.36,10.11860544]
[1723725001326,0.39543127,143.56,143.37,1.2806772]
[1723725001525,1.2986,143.63,143.37,10.08408264]
[1723725001726,10.01300707,143.65,143.4,69.74]
[1723725001943,28.62906657,143.76,143.45,69.74]
[1723725001944,0.36602021,143.62,143.45,69.74]
[1723725002134,69.74,143.76,143.45,69.74]
[1723725002135,24.6684798,143.75,143.46,50.4308832]
[1723725002436,0.36546882,143.74,143.5,69.74]
[1723725002633,0.36546882,143.74,143.51,23.47265365]
[1723725002833,0.36546882,143.74,143.52,1.27964087]
[1723725003141,64.24012157,143.93,143.61,69.74]
[1723725003336,10.34451465,143.92,143.66,69.74]
[1723725003540,0.36291222,143.92,143.67,1.2759]
[1723725003770,3.4761,143.83,143.75,3.4778]
[1723725004038,9.98160243,143.93,143.67,1.2759]
[1723725004039,69.74,143.89,143.67,1.2759]
[1723725004234,3.4755,143.86,143.75,3.478]
[1723725004542,73.28572661,143.94,143.67,1.2759]
[1723725004543,6.979,143.93,143.76,0.04531585]
[1723725004836,0.33574904,143.92,143.76,0.04531585]
[1723725005040,0.8996,143.95,143.76,0.04531585]
[1723725005477,0.8996,143.95,143.76,3.52492331]
[1723725005626,0.05143282,143.79,143.76,0.04531585]
[1723725005833,0.8996,143.95,143.74,3.45315979]
[1723725006035,0.8996,143.95,143.71,69.74]
[1723725006238,0.02,143.97,143.76,69.74]
[1723725006441,0.02,143.97,143.71,69.74]
[1723725006633,0.02,143.97,143.76,0.04849698]
[1723725007175,0.02,144.28,143.87,69.74]
[1723725007453,1.2884,144.18,144.07,3.4703]
[1723725007675,1.2884,144.18,143.98,69.74]
[1723725007946,3.4691,144.13,144.06,3.4705]
[1723725008140,3.4691,144.13,143.93,69.74]
[1723725008141,1.2884,144.18,143.88,72.0797]
[1723725008362,1.60805725,144.17,143.88,72.0797]
[1723725008532,1.2884,144.18,143.93,69.74]
[1723725008730,4.69308413,144.18,143.93,69.74]
[1723725008933,4.7561,144.18,144.11,3.4693]
[1723725009148,1.2742,144.25,143.98,69.74]
[1723725009342,0.33327123,144.24,143.98,73.26526235]
[1723725009705,0.33327123,144.24,144.11,0.0528672]
[1723725009952,0.33348334,144.23,144.11,0.0528672]
[1723725010432,0.33327123,144.24,144.11,0.0528672]
[1723725011033,3.4679,144.18,144.11,0.0528672]
[1723725011234,0.33327123,144.24,144.11,0.0528672]
[1723725011437,0.03327123,144.24,144.11,0.0528672]
[1723725011948,0.02,144.28,144.2,49.91]
[1723725012442,0.02,144.28,144.23,49.91]
[1723725012643,0.02,144.28,144.2,49.91]
[1723725013070,0.02,144.28,144.27,3.4655]
[1723725013261,0.30650281,144.37,144.26,49.91]
[1723725013437,1.3235,144.47,144.24,49.91]
[1723725013744,49.91,144.33,144.21,52.1372]
[1723725014050,49.91,144.36,144.23,0.04849117]
[1723725014246,6.9229,144.44,144.23,0.04849117]
[1723725014439,49.91,144.35,144.23,0.04849117]
[1723725014640,3.4657,144.27,144.23,0.04849117]
[1723725014852,49.91,144.36,144.23,0.04849117]
[1723725015053,0.05006797,144.37,144.23,0.04849117]
[1723725015054,49.91,144.34,144.23,0.04849117]
[1723725015549,49.91,144.28,144.1,1.2272]
[1723725015754,49.91,144.26,144.12,49.91]
[1723725016054,49.91,144.26,144.11,49.91]
[1723725016252,49.91,144.26,144.13,49.91]
[1723725016567,49.91,144.21,144.08,49.91]
[1723725016737,49.91,144.26,143.99,1.2609]
[1723725016738,3.4708,144.05,143.99,1.2609]
[1723725016937,49.91,144.1,143.99,1.2609]
[1723725017339,49.91,144.16,144.02,49.91]
[1723725017880,49.91,144.1,143.95,49.91]
[1723725018150,49.91,144.08,143.95,49.91]
[1723725018351,49.91,144.09,143.83,49.91]
[1723725018545,8.2112,144.19,144.08,0.04755681]
[1723725018747,3.4698,144.09,144.08,0.04755681]
[1723725018945,49.91,144.1,143.93,49.91]
[1723725019192,51.2529,144.08,143.95,49.91]
[1723725019358,1.3429,144.08,144.0,49.91]
[1723725019658,59.55412312,144.14,144.0,49.91]
[1723725019849,49.91,144.1,143.95,49.91]
[1723725020046,1.3429,144.18,144.05,49.91]
[1723725020245,0.30770482,144.17,144.08,49.91]
[1723725020451,0.30770482,144.17,144.05,49.91]
[1723725020764,49.91,144.16,144.03,49.91]
[1723725021552,0.04389147,144.08,144.06,0.04427268]
[1723725021857,3.4703,144.07,144.06,0.04427268]
[1723725022138,49.95389147,144.08,143.96,1.0]
[1723725022356,49.95389147,144.08,143.95,3.4731]
[1723725022357,3.4712,144.04,143.95,3.4731]
[1723725022560,49.91,144.05,143.88,1.2751]
[1723725022746,49.91,144.05,143.91,49.91]
[1723725023058,49.91,144.05,143.88,1.2751]
[1723725023059,49.91,144.07,143.93,49.91]
[1723725023654,3.4712,144.04,143.96,49.91]
[1723725023954,3.4713,144.03,143.96,49.91]
[1723725024154,49.91,144.07,143.96,49.91]
[1723725024463,49.91,144.13,143.98,49.91]
[1723725024656,49.91,144.07,143.94,49.91]
[1723725024960,49.91,144.04,143.91,49.91]
[1723725025255,0.04862886,143.99,143.97,0.04732051]
[1723725025489,0.04862886,143.99,143.98,3.4725]
[1723725026857,0.04862886,143.99,143.98,53.3825]
[1723725027154,49.91,144.11,143.98,49.91]
[1723725027658,70.27221706,144.18,144.06,49.91]
[1723725027875,0.30787568,144.17,144.08,49.91]
[1723725028047,68.92931706,144.18,144.1,49.91]
[1723725028271,1.3069,144.24,144.13,49.91]
[1723725028463,0.30728995,144.23,144.16,49.91]
[1723725028669,0.30728995,144.28,144.16,49.91]
[1723725028856,51.1478,144.29,144.13,49.91]
[1723725028857,0.30728995,144.22,144.13,49.91]
[1723725029158,51.1478,144.29,144.21,3.4669]
[1723725029352,0.30678417,144.28,144.18,49.91]
[1723725029969,0.30678417,144.31,144.23,3.4663]
[1723725030158,0.30678417,144.31,144.23,49.91]
[1723725030359,3.4644,144.32,144.23,49.91]
[1723725030555,49.91,144.37,144.23,49.91]
[1723725030775,49.91,144.34,144.2,49.91]
[1723725030962,49.91,144.32,144.2,49.91]
[1723725031384,49.91,144.29,144.17,49.91]
[1723725031810,0.04969393,144.24,144.14,49.91]
[1723725032062,0.04969393,144.24,144.11,49.91]
[1723725032355,0.04969393,144.24,144.16,49.91]
[1723725032868,3.4665,144.23,144.14,49.91]
[1723725033061,0.04969393,144.24,144.14,49.91]
[1723725033454,0.04969393,144.24,144.22,0.05301967]
[1723725033455,3.51599393,144.24,144.22,0.05301967]
[1723725033657,1.2714,144.28,144.22,0.05301967]
[1723725034275,49.91,144.35,144.22,49.96301967]
[1723725034465,0.30645284,144.34,144.22,49.96301967]
[1723725034760,0.30645284,144.34,144.22,0.05301967]
[1723725035164,0.30645284,144.34,144.22,49.96301967]
[1723725035350,0.30645284,144.34,144.13,3.42488555]
[1723725035351,0.30645284,144.34,144.24,49.91]
[1723725035551,49.91,144.37,144.24,49.91]
[1723725035756,0.30628645,144.36,144.24,49.91]
[1723725036032,0.30628645,144.36,144.27,49.91]
[1723725036260,49.91,144.36,144.22,49.91]
[1723725036461,0.3063546,144.35,144.22,49.91]
[1723725036663,0.3063546,144.35,144.23,3.4664]
[1723725036857,0.3063546,144.35,144.27,0.04726975]
[1723725037164,0.04843835,144.3,144.27,0.04726975]
[1723725038666,3.4653,144.28,144.27,0.04726975]
[1723725039056,3.6653,144.28,144.27,0.04726975]
[1723725040953,0.6383,144.28,144.27,0.04726975]
[1723725041160,49.91,144.46,144.27,99.86726975]
[1723725041357,4.11757184,144.45,144.32,49.91]
[1723725041570,3.4635,144.36,144.32,49.91]
[1723725041761,3.8115,144.45,144.32,49.91]
[1723725042062,3.8115,144.45,144.27,49.95726975]
[1723725042063,50.21593276,144.44,144.27,0.04726975]
[1723725042258,49.91,144.44,144.29,49.91]
[1723725042458,0.30593263,144.43,144.29,49.91]
[1723725042856,0.30593263,144.43,144.34,49.91]
[1723725043060,3.8115,144.45,144.34,49.91]
[1723725043385,53.7215,144.45,144.32,49.91]
[1723725043563,0.04804052,144.4,144.3,49.91]
[1723725044062,49.95804052,144.4,144.27,49.91]
[1723725044366,49.91,144.37,144.25,49.91]
[1723725045083,49.91,144.37,144.12,49.91]
[1723725045084,49.91,144.35,144.22,49.91]
[1723725045384,1.3246,144.34,144.24,49.91]
[1723725045569,1.3246,144.34,144.22,49.91]
[1723725045773,49.91,144.32,144.2,49.91]
[1723725048978,27.72,144.27,144.15,49.91]
[1723725049271,49.91,144.23,144.1,49.91]
[1723725050173,49.91,144.2,144.07,49.91]
[1723725050473,0.04438017,144.18,144.07,49.91]
[1723725050671,49.91,144.17,143.91,49.91]
[1723725050972,49.91,144.14,144.01,49.91]
[1723725051569,0.04438017,144.18,143.83,6.9519]
[1723725051570,49.91,144.08,143.83,6.9519]
[1723725051767,49.91,144.06,143.93,49.91]
[1723725052172,49.91,144.06,143.94,3.4733]
[1723725052374,49.91,144.06,143.93,49.91]
[1723725052880,49.91,144.06,143.84,1.3557]
[1723725052881,1.2762,144.07,143.96,49.91]
[1723725053079,2.5468,144.11,144.06,0.0440294]
[1723725053270,3.4703,144.07,144.06,0.0440294]
[1723725053676,3.4718,144.01,143.96,49.91]
[1723725053970,49.91,144.08,143.93,49.91]
[1723725054183,3.4712,144.04,143.95,49.91]
[1723725054378,49.91,144.08,143.95,49.91]
[1723725054579,49.91,144.05,143.93,49.91]
[1723725054778,3.4717,144.02,143.93,49.91]
[1723725055075,49.91,144.05,143.93,49.91]
[1723725055265,0.05154016,144.08,143.9,49.91]
[1723725055463,0.05154016,144.08,143.85,27.74]
[1723725055464,49.91,144.06,143.93,49.91]
[1723725055669,0.05154016,144.08,143.93,49.91]
[1723725055871,49.91,144.06,143.95,49.91]
[1723725056173,49.91,144.06,143.92,49.91]
[1723725056370,49.91,144.01,143.85,27.74]
[1723725056570,0.30867691,144.05,143.98,0.0467827]
[1723725056768,3.46614042,144.08,143.98,0.0467827]
[1723725056769,49.91,144.07,143.98,0.0467827]
[1723725057378,49.91,144.09,143.98,0.0467827]
[1723725057572,0.30834391,144.08,143.98,0.0467827]
[1723725057875,3.4722,143.99,143.98,0.0467827]
[1723725058079,3.4722,143.99,143.91,49.91]
[1723725058479,3.4722,143.99,143.95,3.4732]
[1723725058679,49.91,144.04,143.91,49.91]
[1723725058873,128.48024315,144.4,143.85,27.74]
[1723725058874,6.979,144.22,144.03,99.82]
[1723725059074,3.4686,144.15,144.08,49.91]
[1723725059275,49.91,144.19,144.08,49.91]
[1723725059576,0.30763791,144.18,144.08,3.4699]
[1723725059777,3.469,144.13,144.06,49.91]
[1723725060078,49.91,144.17,144.04,49.91]
[1723725060278,3.4695,144.11,144.04,49.91]
[1723725060576,49.91,144.15,144.01,49.91]
[1723725061679,0.05231379,144.11,144.05,3.4708]
[1723725061881,3.4697,144.1,144.05,3.4708]
[1723725062178,49.91,144.07,143.95,49.91]
[1723725062378,0.05231379,144.11,143.9,49.91]
[1723725062379,3.4723,143.99,143.9,49.91]
[1723725062683,49.91,144.0,143.89,1.3534]
[1723725062983,49.91,144.02,143.9,49.91]
[1723725063180,49.91,144.0,143.89,1.3534]
[1723725063684,49.91,143.98,143.83,50.6095]
[1723725063983,3.474,143.92,143.83,51.8505]